bitfinex/quotes_ETHUSD_20250622
["timestamp","ask_amount","ask_price","bid_price","bid_amount"]
[1750553572274,1.3158,2305.2,2304.3,4.33969919]
[1750553572479,10.0,2305.0,2304.7,4.33884881]
[1750553572684,10.0,2305.0,2304.8,4.33875124]
[1750553572857,10.0,2305.0,2304.7,4.33886102]
[1750553573476,10.0,2305.0,2304.8,4.33875541]
[1750553573872,10.0,2305.0,2304.7,4.33888203]
[1750553574085,7.901,2305.1,2304.5,0.8184]
[1750553574289,7.901,2305.1,2304.8,4.33862025]
[1750553574487,7.901,2305.1,2304.1,0.8285]
[1750553574488,10.0,2305.0,2304.1,0.8285]
[1750553574644,10.0,2305.0,2304.5,4.33916269]
[1750553574845,10.0,2305.0,2304.3,4.33971271]
[1750553575045,10.0,2305.0,2304.6,4.33901927]
[1750553575245,10.0,2305.0,2304.7,4.3388074]
[1750553575457,10.0,2305.0,2304.8,4.33874497]
[1750553575986,10.0,2305.0,2304.8,4.33867327]
[1750553576198,10.0,2305.0,2304.2,7.9]
[1750553576413,10.0,2305.0,2304.6,4.33898694]
[1750553576945,10.0,2305.0,2304.7,4.33891369]
[1750553577187,0.7977,2304.9,2304.1,0.8285]
[1750553577491,10.0,2304.7,2304.0,4.34011917]
[1750553577696,10.0,2304.7,2304.6,4.33914779]
[1750553577986,10.233,2304.8,2304.7,4.33895951]
[1750553577987,2.334,2304.8,2304.7,4.33895951]
[1750553578345,2.334,2304.8,2304.6,4.33908539]
[1750553578653,3.1039,2304.8,2304.5,4.33932494]
[1750553579184,2.334,2304.8,2304.7,4.33895951]
[1750553579479,2.334,2304.8,2304.7,5.21110463]
[1750553579684,0.2256887,2305.8,2304.7,13.56312236]
[1750553579842,30.0,2305.6,2304.7,0.7942]
[1750553580181,0.8177,2305.5,2305.0,4.33829868]
[1750553580338,10.0,2305.3,2304.9,4.33850686]
[1750553580544,2.334,2305.2,2305.0,4.33838634]
[1750553580744,2.334,2305.2,2305.1,4.33820658]
[1750553580978,2.334,2305.2,2305.0,4.33829934]
[1750553581290,2.334,2305.2,2304.3,0.7942]
[1750553581291,0.8177,2305.0,2304.3,0.7942]
[1750553581578,10.0,2304.8,2304.7,4.33895951]
[1750553581768,10.0,2304.8,2304.6,4.33906855]
[1750553582166,10.0,2304.8,2304.7,4.33895951]
[1750553582482,10.8177,2305.3,2304.6,0.7942]
[1750553582683,2.334,2305.0,2304.9,4.33858301]
[1750553583265,10.0,2304.7,2303.9,0.7942]
[1750553583469,10.0,2304.5,2304.2,4.33985175]
[1750553583806,7.894,2304.6,2303.9,0.7942]
[1750553583807,7.894,2304.6,2304.5,4.33932072]
[1750553584090,2.334,2304.7,2304.6,4.33914779]
[1750553584385,2.334,2304.7,2304.1,4.3400894]
[1750553584684,2.334,2304.7,2304.6,4.33914779]
[1750553584884,2.334,2304.7,2304.3,4.33971271]
[1750553585183,2.334,2304.7,2304.4,4.33938616]
[1750553585360,2.334,2304.7,2304.5,4.339333]
[1750553585569,2.334,2304.7,2304.5,4.33915761]
[1750553585771,2.334,2304.7,2304.2,2.01760894]
[1750553585965,2.334,2304.7,2304.3,4.33963612]
[1750553586164,2.334,2304.7,2304.2,0.7942]
[1750553586165,10.0,2304.6,2304.2,4.33973596]
[1750553586367,0.8177,2304.5,2304.0,4.34009916]
[1750553586566,0.8177,2304.5,2304.2,4.33990036]
[1750553586772,0.8177,2304.5,2304.3,4.33961308]
[1750553587386,0.8177,2304.5,2304.3,4.33959696]
[1750553587597,0.8177,2304.5,2304.2,4.33980765]
[1750553588605,0.8177,2304.5,2304.3,4.3397068]
[1750553588903,10.0,2304.6,2304.0,4.34027777]
[1750553589103,10.0,2304.6,2304.3,4.33958758]
[1750553589281,10.0,2304.6,2304.4,4.33949258]
[1750553589905,11.2165,2305.4,2304.5,4.33933608]
[1750553590103,11.2165,2305.4,2304.6,4.33903777]
[1750553590104,10.214,2305.3,2304.6,4.33903777]
[1750553590302,10.214,2305.3,2304.6,4.33905277]
[1750553590303,14.33824187,2305.1,2304.6,4.33905277]
[1750553590607,10.0,2305.1,2304.6,4.33905277]
[1750553591335,10.7945,2304.9,2304.5,4.33923126]
[1750553591605,10.7945,2304.9,2304.2,0.8083]
[1750553591908,10.7945,2304.9,2304.5,4.33933608]
[1750553592119,10.7945,2304.9,2304.5,4.33930806]
[1750553592601,10.7945,2304.9,2304.6,4.33911766]
[1750553592814,10.7945,2304.9,2304.1,4.85786103]
[1750553593017,10.7945,2304.9,2304.1,0.51778751]
[1750553593309,10.7945,2304.9,2304.6,4.33914238]
[1750553593510,10.0,2304.4,2303.7,4.34084299]
[1750553593679,10.0,2304.2,2303.7,4.34083461]
[1750553593883,7.889,2304.1,2303.7,4.34067049]
[1750553594070,28.312,2304.3,2304.2,4.33990105]
[1750553594285,30.635,2304.3,2304.1,4.34002555]
[1750553594510,20.423,2304.3,2303.3,5.1498918]
[1750553594709,10.211,2304.2,2304.0,4.34017796]
[1750553595006,10.211,2304.2,2304.0,4.34009332]
[1750553595219,10.211,2304.2,2304.1,4.3400894]
[1750553596618,2.323,2304.2,2304.1,4.3400894]
[1750553596783,28.31,2304.3,2304.2,4.33990105]
[1750553596979,20.423,2304.3,2304.2,4.33990105]
[1750553597194,22.746,2304.3,2304.2,4.33990105]
[1750553599114,22.746,2304.3,2304.1,4.34006765]
[1750553599429,7.886,2304.2,2303.5,0.7684]
[1750553599615,7.886,2304.2,2304.0,4.34010287]
[1750553600841,7.886,2304.2,2303.9,4.34039803]
[1750553601455,7.886,2304.2,2304.0,4.34027698]
[1750553602218,10.423,2304.3,2303.9,2.766875]
[1750553602543,2.323,2304.2,2304.1,4.3400894]
[1750553602922,10.423,2304.3,2304.2,4.33990105]
[1750553603431,2.323,2304.4,2304.3,4.33971271]
[1750553603623,2.323,2304.4,2304.3,4.38310565]
[1750553603820,2.323,2304.4,2304.3,8.73297776]
[1750553604144,2.323,2304.4,2304.3,8.68958482]
[1750553604344,2.323,2304.4,2304.3,7.10658771]
[1750553604843,2.323,2304.4,2304.3,7.14998231]
[1750553605043,2.323,2304.4,2304.3,7.10658771]
[1750553605220,2.323,2304.4,2304.3,7.14998059]
[1750553605541,2.323,2304.4,2304.3,7.10658771]
[1750553605747,2.323,2304.4,2304.3,7.14998023]
[1750553606050,2.323,2304.4,2304.3,7.10658771]
[1750553606624,2.323,2304.4,2304.3,2.766875]
[1750553606952,10.0,2304.3,2303.9,4.34034021]
[1750553607248,10.0,2304.3,2304.0,4.34024075]
[1750553607745,2.323,2304.4,2304.1,4.33996184]
[1750553607917,2.323,2304.4,2304.1,4.34006015]
[1750553608243,2.323,2304.4,2304.0,4.34018946]
[1750553608641,2.323,2304.4,2304.1,4.34006112]
[1750553608865,2.323,2304.4,2304.0,4.34019599]
[1750553609224,2.323,2304.4,2304.1,4.34005756]
[1750553609609,2.323,2304.4,2304.0,4.34019561]
[1750553609837,10.0,2304.3,2303.9,4.34037372]
[1750553610031,10.0,2304.3,2303.9,4.34044241]
[1750553610237,10.0,2304.3,2303.7,2.81027771]
[1750553610441,2.323,2304.2,2303.7,7.15109912]
[1750553610754,2.323,2304.2,2304.0,4.34012914]
[1750553611117,2.323,2304.2,2303.8,4.3405312]
[1750553611460,10.0,2304.1,2303.8,4.34055104]
[1750553612670,2.323,2304.2,2303.9,4.34034586]
[1750553613021,2.323,2304.2,2303.8,4.34057963]
[1750553613242,2.323,2304.2,2304.0,4.34025516]
[1750553613653,2.323,2304.2,2304.1,4.3400894]
[1750553614254,2.323,2304.2,2304.0,4.34013476]
[1750553614552,2.323,2304.2,2303.3,5.14067434]
[1750553614753,2.323,2304.2,2303.9,4.34036943]
[1750553615050,2.323,2304.2,2303.8,4.34057044]
[1750553615350,2.323,2304.2,2303.9,4.34043959]
[1750553616035,2.323,2304.2,2303.8,4.34057044]
[1750553616235,10.0,2304.5,2304.1,4.34007525]
[1750553616462,10.185,2304.4,2304.1,4.34007525]
[1750553616761,10.185,2304.4,2303.7,4.34084299]
[1750553617057,10.0,2304.3,2304.2,4.3398858]
[1750553618759,2.31,2304.4,2303.5,0.8102]
[1750553618955,2.31,2304.4,2303.6,5.26531564]
[1750553619155,2.31,2304.4,2304.0,4.34011295]
[1750553619362,2.31,2304.4,2304.1,4.3400627]
[1750553619668,2.31,2304.4,2303.5,0.8102]
[1750553619669,10.0,2304.1,2303.5,0.8102]
[1750553619957,17.872,2304.3,2303.5,0.85360649]
[1750553620336,2.31,2304.2,2303.5,5.19477988]
[1750553620665,2.31,2304.2,2303.5,0.8102]
[1750553621022,0.7899,2304.1,2303.6,4.34093357]
[1750553621372,10.0,2304.0,2303.5,4.34112375]
[1750553621574,1.86609,2303.9,2303.2,0.7886]
[1750553621735,10.0,2303.7,2302.9,0.7886]
[1750553621931,10.0,2303.5,2303.1,4.34195357]
[1750553622324,10.0,2303.5,2303.0,4.34207069]
[1750553622529,10.0,2303.5,2302.5,4.34302616]
[1750553622530,22.21131646,2303.5,2302.5,4.34302616]
[1750553622759,24.74243811,2303.5,2302.9,4.34223832]
[1750553623058,20.40112165,2303.5,2302.9,4.34223832]
[1750553623230,10.0,2303.4,2302.9,4.34217691]
[1750553623632,14.34147967,2303.4,2302.8,4.34247558]
[1750553624136,0.8252,2303.2,2302.7,4.34264532]
[1750553624453,0.8252,2302.8,2302.1,4.34368619]
[1750553624765,12.21085303,2302.7,2302.1,4.34381902]
[1750553624963,2.311,2302.6,2302.2,4.34364699]
[1750553625178,2.311,2302.6,2301.8,0.7897]
[1750553625179,10.0,2302.6,2302.1,0.04343638]
[1750553625378,10.0,2302.6,2302.5,4.34310532]
[1750553625683,12.311,2302.6,2302.5,4.34310532]
[1750553625979,2.311,2302.6,2301.9,4.34423736]
[1750553626283,2.311,2302.6,2302.5,4.34296302]
[1750553626443,2.311,2302.6,2302.4,4.34320464]
[1750553626648,11.0032,2302.6,2302.2,4.34362133]
[1750553627182,11.0032,2302.6,2302.3,4.34336352]
[1750553627363,22.53777506,2302.6,2301.8,0.7897]
[1750553627551,4.34321321,2302.5,2301.9,4.34413792]
[1750553627944,40.0,2302.2,2302.0,2.766875]
[1750553628146,7.867,2302.2,2302.1,7.11073495]
[1750553628391,10.178,2302.2,2302.1,7.11073495]
[1750553628775,0.8252,2302.3,2302.1,3.91236803]
[1750553628776,2.311,2302.3,2302.1,3.91236803]
[1750553629091,2.311,2302.3,2302.2,4.34367127]
[1750553629251,2.311,2302.3,2302.2,7.90024627]
[1750553630360,2.311,2302.8,2302.7,4.3427281]
[1750553631408,2.311,2302.8,2302.6,4.3428236]
[1750553631597,2.311,2302.8,2302.2,5.13332123]
[1750553631748,0.8252,2302.7,2302.4,4.34319051]
[1750553631951,0.8252,2302.7,2302.2,0.7897]
[1750553632179,2.311,2302.8,2302.7,4.3427281]
[1750553632562,2.311,2302.8,2302.6,4.34291125]
[1750553632962,2.311,2302.8,2302.5,4.34301735]
[1750553633165,2.311,2302.8,2302.5,4.34295303]
[1750553633589,2.311,2302.8,2302.2,5.13334494]
[1750553633800,2.311,2302.8,2302.7,4.3427281]
[1750553636367,20.427,2303.0,2302.9,4.34235094]
[1750553636959,20.427,2303.0,2302.8,4.34243005]
[1750553637159,20.427,2303.0,2302.7,3.594075]
[1750553637160,10.0,2302.9,2302.7,2.766875]
[1750553637374,3.5891,2302.8,2302.7,2.766875]
[1750553637595,13.5891,2302.8,2302.7,2.766875]
[1750553638202,13.5891,2302.8,2301.9,0.8272]
[1750553638203,7.93173093,2302.8,2302.5,2.766875]
[1750553638401,10.0,2302.5,2302.1,2.766875]
[1750553638699,10.0,2302.3,2302.2,4.34367127]
[1750553639473,1.79317309,2302.7,2302.2,4.34367127]
[1750553639800,12.312,2302.6,2302.5,4.34310532]
[1750553639996,12.312,2302.6,2302.5,7.10998032]
[1750553640406,2.312,2302.6,2302.5,7.10998032]
[1750553641211,2.312,2302.6,2302.5,8.25529196]
[1750553641575,10.427,2303.0,2302.5,2.766875]
[1750553641787,20.169,2302.9,2302.2,2.766875]
[1750553642019,20.169,2302.9,2302.8,4.34253951]
[1750553642432,12.739,2303.0,2302.9,4.34235094]
[1750553642573,22.739,2303.0,2302.9,4.34235094]
[1750553643783,22.739,2303.0,2302.9,7.97771218]
[1750553643784,12.739,2303.0,2302.9,7.97771218]
[1750553644284,2.312,2303.0,2302.9,7.97771218]
[1750553644983,2.295,2303.4,2303.3,4.34159683]
[1750553645676,2.295,2303.4,2303.1,2.766875]
[1750553645677,10.8226,2303.3,2303.1,2.766875]
[1750553645882,10.0,2303.3,2303.2,4.34178534]
[1750553646181,17.853,2303.5,2303.4,4.34128341]
[1750553646385,10.0,2303.5,2303.4,4.34128341]
[1750553646602,2.295,2303.5,2303.4,5.20956858]
[1750553646930,2.295,2303.5,2303.3,4.3415683]
[1750553646931,2.295,2303.5,2303.2,2.766875]
[1750553647113,2.295,2303.5,2303.4,4.34140835]
[1750553648123,17.853,2303.8,2303.4,4.34140835]
[1750553648124,10.431,2303.9,2303.8,4.34065457]
[1750553648320,20.578,2303.9,2303.2,2.766875]
[1750553648490,10.0,2303.8,2302.8,3.558175]
[1750553648695,10.0,2303.8,2303.4,4.34123023]
[1750553649310,10.0,2303.8,2303.3,4.34152455]
[1750553649490,10.0,2303.8,2303.3,4.34151212]
[1750553649683,0.7685,2303.1,2302.3,1.20202606]
[1750553649887,0.7685,2303.1,2302.7,4.34254775]
[1750553649888,10.145,2303.0,2302.7,4.34254775]
[1750553650192,2.295,2302.9,2302.8,4.34253951]
[1750553650617,2.295,2302.9,2302.7,4.34267047]
[1750553650819,2.295,2302.9,2302.8,4.34253951]
[1750553651925,2.295,2302.9,2302.3,0.7734]
[1750553651926,2.295,2302.9,2302.7,4.34264647]
[1750553652297,2.295,2302.9,2302.6,4.34280798]
[1750553652502,2.295,2302.9,2302.7,4.34270937]
[1750553652698,2.295,2302.9,2302.8,4.34253951]
[1750553654228,2.295,2302.9,2302.7,4.34265006]
[1750553654391,2.295,2302.9,2302.5,4.34305885]
[1750553654588,10.0,2302.8,2302.7,4.34271914]
[1750553656818,0.7658,2303.4,2303.0,4.34204275]
[1750553656993,20.141,2303.3,2303.1,4.34185516]
[1750553657189,20.141,2303.3,2303.0,4.34208312]
[1750553657389,20.141,2303.3,2303.1,4.34196715]
[1750553657610,20.141,2303.3,2303.1,4.34188929]
[1750553658022,7.844,2303.2,2302.7,0.86856243]
[1750553658226,10.0,2303.1,2303.0,4.34216239]
[1750553658643,10.0,2303.1,2302.8,4.34235446]
[1750553658802,10.0,2303.1,2302.5,4.34299906]
[1750553659137,10.0,2303.1,2303.0,4.34216239]
[1750553660734,10.0,2303.1,2303.0,2.766875]
[1750553663342,10.136,2303.1,2303.0,2.766875]
[1750553664041,20.136,2303.1,2303.0,2.766875]
[1750553665000,20.134,2303.1,2303.0,2.766875]
[1750553665639,10.0,2303.1,2303.0,7.10903739]
[1750553666006,2.296,2303.2,2303.0,1.14513541]
[1750553666232,10.7972,2303.8,2303.4,4.34131666]
[1750553666536,10.7972,2303.8,2303.3,4.3415164]
[1750553666537,30.0,2303.6,2303.3,4.3415164]
[1750553666724,30.0,2303.6,2303.5,4.34121988]
[1750553666928,2.296,2303.6,2303.5,4.34121988]
[1750553667126,10.133,2303.6,2303.5,4.34121988]
[1750553667548,10.431,2303.9,2303.8,4.34065457]
[1750553667843,40.43,2304.5,2304.1,4.3400894]
[1750553668013,30.0,2304.3,2304.1,4.3400894]
[1750553668359,7.836,2304.2,2304.1,4.3400894]
[1750553668657,10.0,2303.8,2303.6,4.34092987]
[1750553668817,10.132,2303.7,2303.6,4.34092987]
[1750553669307,2.296,2303.7,2303.6,4.34092987]
[1750553669507,10.131,2303.7,2303.6,4.34092987]
[1750553669740,20.131,2303.7,2303.6,4.34103142]
[1750553670046,20.131,2303.7,2303.2,0.7834]
[1750553670047,10.9432,2303.7,2303.4,4.34138903]
[1750553670341,10.0,2303.6,2303.3,4.34145951]
[1750553670641,7.833,2303.5,2303.4,4.34140835]
[1750553671258,0.8122,2303.7,2303.5,4.34109284]
[1750553671437,20.128,2303.6,2303.5,4.34109284]
[1750553671744,20.128,2303.6,2303.4,4.34140835]
[1750553671745,20.128,2303.6,2303.4,4.34134153]
[1750553672155,30.0,2303.5,2302.9,0.7891]
[1750553672344,22.22202,2303.6,2302.9,0.7891]
[1750553672345,7.832,2303.4,2303.2,4.34161932]
[1750553672664,7.831,2303.3,2303.1,4.3418873]
[1750553673008,7.831,2303.3,2303.2,4.34178534]
[1750553674721,10.0,2303.6,2303.5,4.34121988]
[1750553675038,20.124,2303.6,2303.5,4.34121988]
[1750553676155,10.0,2303.6,2303.5,4.34121988]
[1750553676311,20.109,2303.6,2303.5,7.10809488]
[1750553677167,20.109,2303.6,2303.5,2.766875]
[1750553677346,22.9014,2303.6,2303.4,2.766875]
[1750553677548,10.0,2303.5,2303.4,2.766875]
[1750553677955,0.7815,2303.6,2303.4,7.10828335]
[1750553678118,20.106,2303.5,2303.4,2.766875]
[1750553678460,20.106,2303.5,2302.9,0.8179]
[1750553678461,30.0,2303.3,2302.9,7.10922073]
[1750553678670,10.0,2303.1,2303.0,4.34206665]
[1750553679019,10.0,2303.1,2302.9,7.10913914]
[1750553679225,7.825,2303.0,2302.8,4.34244713]
[1750553679451,12.28,2303.2,2302.8,7.10932213]
[1750553679452,7.825,2302.9,2302.8,7.10932213]
[1750553679950,7.825,2302.9,2302.8,2.766875]
[1750553680355,7.825,2302.9,2302.8,7.10941451]
[1750553682470,7.825,2302.9,2302.8,2.766875]
[1750553682936,7.825,2302.9,2302.8,7.10941451]
[1750553683477,0.7815,2303.1,2303.0,4.34216239]
[1750553683626,10.429,2303.3,2303.0,4.34216239]
[1750553683627,10.429,2303.3,2303.2,4.34178534]
[1750553683828,2.28,2304.2,2304.0,4.34020237]
[1750553684138,2.28,2304.2,2304.1,4.3400894]
[1750553684646,0.7815,2304.6,2304.3,4.33965926]
[1750553684959,10.101,2304.5,2304.3,4.33965926]
[1750553685171,10.101,2304.5,2304.4,4.33952438]
[1750553685666,10.1,2304.5,2304.3,4.33964894]
[1750553685838,10.1,2304.5,2304.3,4.33971271]
[1750553686043,10.1,2304.5,2304.4,4.33952438]
[1750553686767,10.1,2304.5,2304.3,4.33963495]
[1750553687169,10.099,2304.4,2304.3,4.33963495]
[1750553687538,2.28,2304.4,2304.3,4.33963495]
[1750553688137,3.2898,2304.4,2303.9,4.34036719]
[1750553688343,8.5905,2304.3,2303.9,4.34036719]
[1750553688641,8.5905,2304.3,2303.8,4.34052214]
[1750553688887,8.5905,2304.3,2303.2,2.766875]
[1750553689055,30.0,2304.0,2303.6,4.34090767]
[1750553689255,30.0,2303.8,2303.6,4.34101142]
[1750553689450,30.0,2303.8,2303.4,4.34139894]
[1750553689451,40.0,2303.6,2303.3,2.766875]
[1750553689654,7.816,2303.5,2303.1,2.766875]
[1750553689877,2.28,2303.4,2303.2,4.34175287]
[1750553690169,7.815,2303.3,2303.2,4.34175287]
[1750553690371,30.0,2303.6,2303.5,4.34109196]
[1750553690572,10.095,2303.6,2303.5,4.34109196]
[1750553690773,10.095,2303.6,2303.4,4.34134639]
[1750553691765,40.428,2303.7,2303.6,4.34103142]
[1750553691936,30.0,2303.6,2303.5,4.34116499]
[1750553692619,30.0,2303.6,2303.2,7.10862946]
[1750553692742,7.813,2303.5,2303.2,7.10862946]
[1750553692967,7.813,2303.5,2303.4,4.34140835]
[1750553695477,10.428,2303.7,2303.6,4.34103142]
[1750553695692,30.52,2303.7,2303.6,4.34103142]
[1750553695983,30.52,2303.7,2303.6,7.10790642]
[1750553696154,30.52,2303.7,2303.6,4.34103142]
[1750553696663,30.52,2303.7,2303.6,7.10790642]
[1750553696664,30.518,2303.7,2303.6,7.10790642]
[1750553696864,30.518,2303.7,2303.6,4.34103142]
[1750553697583,30.517,2303.7,2303.6,4.34103142]
[1750553697784,10.428,2303.7,2303.6,5.20925361]
[1750553700386,10.428,2303.7,2303.6,4.34103142]
[1750553700598,28.234,2303.7,2303.3,0.751]
[1750553700754,28.234,2303.7,2303.5,4.34107625]
[1750553701466,10.0,2303.6,2303.5,4.34107625]
[1750553701665,10.0,2303.6,2303.5,4.34121988]
[1750553703185,10.0,2303.6,2303.1,4.34197386]
[1750553703389,17.804,2303.5,2303.4,4.34140835]
[1750553703699,10.0,2303.4,2303.3,4.34149529]
[1750553705255,10.0,2303.4,2303.3,7.10837029]
[1750553705593,20.064,2303.4,2303.3,7.10837029]
[1750553705899,20.428,2303.7,2303.6,4.34103142]
[1750553706208,0.7753,2304.5,2304.3,4.33963724]
[1750553706357,27.01264125,2304.4,2303.8,4.34054719]
[1750553706711,10.0,2304.0,2303.4,4.341249]
[1750553706855,10.062,2303.9,2303.8,4.34054229]
[1750553707795,2.263,2303.9,2303.8,4.34054229]
[1750553708001,10.062,2303.9,2303.3,0.8136]
[1750553708306,10.0,2303.8,2303.6,4.34094347]
[1750553708603,17.798,2303.7,2303.6,4.34094347]
[1750553709177,17.798,2303.7,2303.5,4.34107846]
[1750553709178,10.0,2303.6,2303.5,4.34107846]
[1750553711209,2.0062,2303.9,2303.3,0.8136]
[1750553711374,2.263,2303.6,2303.5,4.34121988]
[1750553711705,0.7762,2303.8,2303.6,4.34102221]
[1750553711908,12.263,2303.7,2303.6,2.766875]
[1750553712077,20.057,2303.7,2303.6,2.766875]
[1750553712281,22.57438611,2303.7,2303.6,2.766875]
[1750553712474,20.057,2303.7,2303.6,7.10790642]
[1750553713903,20.057,2303.7,2303.6,2.766875]
[1750553714672,20.057,2303.7,2303.6,7.10790642]
[1750553714889,20.057,2303.7,2303.6,2.766875]
[1750553715422,20.057,2303.7,2303.6,7.10790642]
[1750553715909,10.053,2303.7,2303.6,7.10785941]
[1750553716110,10.0,2303.6,2303.1,2.766875]
[1750553716311,7.79,2303.5,2303.4,4.34122352]
[1750553716513,17.79,2303.5,2303.3,4.34151566]
[1750553716878,17.79,2303.5,2303.4,4.34140835]
[1750553717079,19.97462,2303.5,2303.4,4.34140835]
[1750553717279,19.97462,2303.5,2303.4,2.766875]
[1750553717807,19.97462,2303.5,2303.4,7.10828335]
[1750553718171,30.0,2304.1,2303.5,0.7718]
[1750553718392,10.0,2303.8,2303.6,7.10774722]
[1750553718610,17.788,2303.7,2303.6,7.10774722]
[1750553719417,20.05,2303.7,2303.6,7.10774722]
[1750553719776,20.05,2303.7,2303.6,2.766875]
[1750553719976,20.05,2303.7,2303.6,7.10790642]
[1750553721280,20.048,2303.7,2303.6,7.10790642]
[1750553721679,12.263,2303.7,2303.6,7.10790642]
[1750553721901,20.048,2303.7,2303.6,7.10790642]
[1750553722381,20.048,2303.7,2303.6,2.766875]
[1750553722578,22.0528,2303.7,2303.6,2.766875]
[1750553722817,22.0528,2303.7,2303.6,7.10790642]
[1750553723024,20.048,2303.7,2303.6,7.10790642]
[1750553723517,20.048,2303.7,2303.6,2.766875]
[1750553724423,10.8656,2303.7,2303.4,2.766875]
[1750553724719,10.8656,2303.7,2303.4,7.10827364]
[1750553725094,10.0,2304.0,2303.6,4.34103142]
[1750553725289,11.29462906,2303.9,2303.5,4.34111949]
[1750553725692,10.0,2303.7,2303.5,4.34111949]
[1750553725883,17.78,2303.6,2303.5,4.34111949]
[1750553726084,17.78,2303.6,2303.5,7.10799449]
[1750553727091,2.263,2303.7,2303.6,4.34103142]
[1750553727292,12.263,2303.7,2303.5,2.766875]
[1750553727593,7.778,2303.6,2303.5,7.10809488]
[1750553728315,2.263,2303.7,2303.5,7.10809488]
[1750553728517,20.04,2303.7,2303.6,4.34103142]
[1750553728724,0.8176,2304.3,2303.6,7.10790642]
[1750553728891,10.039,2304.4,2304.3,4.33971271]
[1750553729223,10.0,2304.3,2304.2,4.33988695]
[1750553729525,10.039,2304.4,2304.2,4.33987397]
[1750553729722,10.039,2304.4,2304.3,4.33971271]
[1750553730024,10.0,2304.5,2304.4,4.33952438]
[1750553730315,10.038,2304.5,2304.4,4.33952438]
[1750553730520,20.037,2304.5,2304.4,4.33952438]
[1750553730728,2.263,2304.5,2304.4,8.73842136]
[1750553731103,2.263,2304.5,2304.4,7.97432136]
[1750553731419,12.263,2304.5,2304.4,7.10639938]
[1750553732412,12.263,2304.5,2304.4,2.766875]
[1750553732724,12.263,2304.5,2304.0,0.7641]
[1750553732925,10.0,2304.3,2304.1,4.33999034]
[1750553733106,7.771,2304.2,2304.1,4.33999034]
[1750553733928,10.0,2304.3,2304.2,4.33990105]
[1750553734218,20.032,2304.3,2304.2,4.33990105]
[1750553734421,10.0,2304.3,2304.2,4.33990105]
[1750553734723,12.262,2304.3,2304.2,4.33990105]
[1750553735121,10.428,2304.6,2304.5,4.33933608]
[1750553735320,20.458,2304.6,2304.5,4.33933608]
[1750553735525,30.458,2304.6,2304.5,4.33933608]
[1750553735723,20.428,2304.6,2304.5,7.10621108]
[1750553736024,30.438,2304.6,2304.5,7.10621108]
[1750553737228,20.438,2304.6,2304.5,7.10621108]
[1750553737723,20.438,2304.6,2304.5,2.766875]
[1750553738935,20.98153809,2304.6,2304.5,2.766875]
[1750553739422,30.98153809,2304.6,2304.5,2.766875]
[1750553741102,61.81253809,2304.6,2304.5,2.766875]
[1750553741294,61.81253809,2304.6,2303.7,0.819]
[1750553741295,44.33946697,2304.5,2303.7,0.819]
[1750553741603,40.0,2304.2,2304.0,4.34018175]
[1750553741819,10.003,2304.4,2303.8,4.34065457]
[1750553741820,7.76,2304.1,2303.8,4.34054821]
[1750553741996,0.831,2303.6,2302.6,4.3428093]
[1750553742193,0.831,2303.6,2302.0,0.819]
[1750553742194,10.0,2302.6,2302.0,0.819]
[1750553742496,10.0,2301.9,2300.9,0.819]
[1750553742695,20.426,2301.8,2301.7,4.34461484]
[1750553742894,20.424,2301.8,2301.7,4.34461484]
[1750553743137,20.424,2301.8,2301.6,5.16376922]
[1750553743138,10.0,2301.7,2301.6,5.16376922]
[1750553743444,12.667,2301.8,2301.7,4.34461484]
[1750553743649,10.424,2301.8,2301.7,4.34461484]
[1750553745299,20.428,2301.8,2301.7,4.34461484]
[1750553745499,10.424,2301.8,2301.7,4.34461484]
[1750553745745,12.668,2301.8,2301.7,4.34461484]
[1750553746107,10.424,2301.8,2301.7,4.34461484]
[1750553746346,12.668,2301.8,2301.7,4.34461484]
[1750553747753,12.668,2301.8,2301.7,7.11148984]
[1750553748236,30.0,2301.6,2301.2,4.34539667]
[1750553748420,10.002,2301.5,2301.3,4.38881003]
[1750553748727,12.244,2301.5,2301.4,4.34518119]
[1750553748935,20.002,2301.5,2301.4,4.34518119]
[1750553750245,12.244,2301.5,2301.4,4.34518119]
[1750553750446,20.002,2301.5,2301.4,4.34518119]
[1750553751047,18.182,2301.8,2301.7,4.34461484]
[1750553751341,12.668,2301.8,2301.7,4.34461484]
[1750553753445,10.424,2301.8,2301.7,4.34461484]
[1750553753657,12.669,2301.8,2301.7,4.34461484]
[1750553754647,12.669,2301.8,2301.6,4.34471157]
[1750553754940,12.669,2301.8,2301.7,4.34461484]
[1750553755635,12.669,2301.8,2301.6,4.34472791]
[1750553756239,12.669,2301.8,2301.7,2.766875]
[1750553756436,12.669,2301.8,2301.7,7.11148984]
[1750553757248,2.245,2302.3,2302.2,4.34367127]
[1750553759220,10.434,2302.7,2302.6,4.3429167]
[1750553759452,10.0,2302.6,2302.4,4.3431087]
[1750553760123,10.0,2302.6,2302.5,4.34310532]
[1750553760314,10.0,2302.6,2302.2,3.540575]
[1750553760544,7.752,2302.5,2302.2,2.766875]
[1750553760721,8.54,2302.5,2302.2,2.766875]
[1750553760920,8.54,2302.5,2302.2,7.11052563]
[1750553761121,8.54,2302.5,2302.3,4.34344915]
[1750553761420,7.752,2302.5,2302.3,4.34339552]
[1750553762894,7.752,2302.5,2302.4,4.34329395]
[1750553762895,17.752,2302.5,2302.4,4.34329395]